fUSD/lending_fUSD_20251105
["ID","MTS","AMOUNT","RATE_DAILY","PERIOD"]
[393189541,1762307444640,-432.579819,0.00029361,31]
[393189542,1762307444651,-151.0,0.00029361,31]
[393189543,1762307444660,-151.0,0.00029361,31]
[393189544,1762307444670,-151.000013,0.00029361,31]
[393189545,1762307444679,-175.343849,0.00029361,31]
[393189546,1762307444690,-195.05287,0.00029361,31]
[393189547,1762307444699,-151.0,0.00029361,31]
[393189548,1762307444708,-151.0,0.00029361,31]
[393189549,1762307444718,-152.008642,0.00029361,31]
[393189550,1762307444727,-151.0,0.00029361,31]
[393189551,1762307444736,-153.628635,0.00029361,31]
[393189552,1762307444746,-151.000002,0.00029361,31]
[393189553,1762307444755,-151.0,0.00029361,31]
[393189554,1762307444765,-330.136094,0.00029361,31]
[393189555,1762307444774,-330.136094,0.00029361,31]
[393189556,1762307444784,-330.136094,0.00029361,31]
[393189557,1762307444793,-330.136094,0.00029361,31]
[393189558,1762307444802,-151.0,0.00029361,31]
[393189559,1762307444812,-151.0,0.00029361,31]
[393189560,1762307444821,-153.864671,0.00029361,31]
[393189561,1762307444830,-151.0,0.00029361,31]
[393189562,1762307444840,-151.0,0.00029361,31]
[393189563,1762307444849,-151.0,0.00029361,31]
[393189564,1762307444858,-151.0,0.00029361,31]
[393189565,1762307444869,-151.0,0.00029361,31]
[393189566,1762307444879,-151.0,0.00029361,31]
[393189567,1762307444888,-151.0,0.00029361,31]
[393189568,1762307444897,-151.0,0.00029361,31]
[393189569,1762307444907,-151.0,0.00029361,31]
[393189570,1762307444918,-151.0,0.00029361,31]
[393189571,1762307444928,-160.59943,0.00029361,31]
[393189572,1762307444940,-161.147188,0.00029361,31]
[393189573,1762307444954,-151.0,0.00029361,31]
[393189574,1762307444963,-151.0,0.00029361,31]
[393189575,1762307444972,-151.0,0.00029361,30]
[393189576,1762307444983,-255.872056,0.00029361,31]
[393189577,1762307444991,-151.0,0.00029361,31]
[393189578,1762307445001,-151.0,0.00029361,31]
[393189579,1762307445010,-151.0,0.00029361,31]
[393189580,1762307445019,-151.0,0.00029361,31]
[393189581,1762307445029,-151.0,0.00029361,31]
[393189582,1762307445038,-153.808122,0.00029361,31]
[393189583,1762307445047,-151.0,0.00029361,31]
[393189584,1762307445057,-16942.3539833,0.00029362,3]
[393189585,1762307445066,-13790.4538588,0.00029362,3]
[393189586,1762307445075,-33884.7079665,0.00029371,3]
[393189587,1762307445084,-151.0,0.00029372,31]
[393189588,1762307445094,-194.804697,0.00029372,31]
[393189589,1762307445103,-13790.4538588,0.00029381,3]
[393189590,1762307445114,-151.0,0.00029381,31]
[393189591,1762307445123,-151.0,0.00029381,31]
[393189592,1762307445133,-151.0,0.00029381,31]
[393189593,1762307445142,-151.0,0.00029381,31]
[393189594,1762307445151,-151.0,0.00029381,31]
[393189595,1762307445161,-151.0,0.00029381,31]
[393189596,1762307445170,-151.0,0.00029381,31]
[393189597,1762307445180,-151.0,0.00029381,31]
[393189598,1762307445192,-151.0,0.00029381,31]
[393189599,1762307445202,-151.0,0.00029381,31]
[393189600,1762307445212,-151.0,0.00029381,31]
[393189601,1762307445221,-151.0,0.00029381,31]
[393189602,1762307445231,-291.198301,0.00029381,28]
[393189603,1762307445240,-291.198301,0.00029381,28]
[393189604,1762307445250,-291.198301,0.00029381,28]
[393189605,1762307445259,-291.198301,0.00029381,28]
[393189606,1762307445269,-41371.3615765,0.00029381,3]
[393189607,1762307445278,-1014.7961,0.0002939,2]
[393189608,1762307445287,-151.0,0.00029391,31]
[393189609,1762307445297,-151.0,0.00029391,31]
[393189610,1762307445306,-151.0,0.00029391,31]
[393189611,1762307445315,-151.0,0.00029391,31]
[393189612,1762307445325,-151.0,0.00029391,31]
[393189613,1762307445334,-151.0,0.00029391,31]
[393189614,1762307445344,-151.0,0.00029391,31]
[393189615,1762307445354,-213.961143,0.00029391,31]
[393189616,1762307445363,-246.647452,0.00029391,31]
[393189617,1762307445372,-246.647452,0.00029391,31]
[393189618,1762307445381,-432.579819,0.00029391,31]
[393189619,1762307445391,-432.579819,0.00029391,31]
[393189620,1762307445400,-432.579819,0.00029391,31]
[393189621,1762307445410,-432.579819,0.00029391,31]
[393189622,1762307445419,-151.0,0.00029391,31]
[393189623,1762307445430,-151.0,0.00029391,31]
[393189624,1762307445440,-151.0,0.00029391,31]
[393189625,1762307445450,-278.241517,0.00029391,31]
[393189626,1762307445460,-151.0,0.00029391,31]
[393189627,1762307445470,-151.0,0.00029391,31]
[393189628,1762307445479,-330.136094,0.00029391,31]
[393189629,1762307445489,-330.136094,0.00029391,31]
[393189630,1762307445499,-330.136094,0.00029391,31]
[393189631,1762307445507,-330.136094,0.00029391,31]
[393189632,1762307445516,-187.221612,0.00029391,31]
[393189633,1762307445526,-151.0,0.00029391,31]
[393189634,1762307445537,-151.0,0.00029391,31]
[393189635,1762307445547,-159.712931,0.00029391,31]
[393189636,1762307445558,-151.0,0.00029391,31]
[393189637,1762307445567,-151.0,0.00029391,31]
[393189638,1762307445577,-151.0,0.00029391,31]
[393189639,1762307445586,-151.0,0.00029391,31]
[393189640,1762307445596,-151.0,0.00029391,31]
[393189641,1762307445605,-151.0,0.00029391,31]
[393189642,1762307445615,-151.0,0.00029391,31]
[393189643,1762307445624,-151.0,0.00029391,31]
[393189644,1762307445634,-151.0,0.00029391,31]
[393189645,1762307445645,-151.0,0.00029391,31]
[393189646,1762307445654,-151.0,0.00029391,30]
[393189647,1762307445663,-289.888631,0.00029391,31]
[393189648,1762307445673,-151.0,0.00029391,31]
[393189649,1762307445682,-151.0,0.00029391,31]
[393189650,1762307445692,-151.0,0.00029391,31]
[393189651,1762307445701,-151.0,0.00029391,31]
[393189652,1762307445711,-151.0,0.00029391,31]
[393189653,1762307445720,-168.849809,0.00029391,31]
[393189654,1762307445729,-252.467454,0.00029391,31]
[393189655,1762307445738,-252.467454,0.00029391,31]
[393189656,1762307445747,-252.467454,0.00029391,31]
[393189657,1762307445757,-252.467454,0.00029391,31]
[393189658,1762307445767,-217.205769,0.00029391,31]
[393189659,1762307445777,-154.882133,0.00029391,31]
[393189660,1762307445787,-151.0,0.00029391,31]
[393189661,1762307445796,-217.205769,0.00029391,31]
[393189662,1762307445805,-151.0,0.00029391,31]
[393189663,1762307445814,-217.205769,0.00029391,31]
[393189664,1762307445824,-151.0,0.00029391,31]
[393189665,1762307445833,-151.0,0.00029391,31]
[393189666,1762307445841,-217.205769,0.00029391,31]
[393189667,1762307445850,-151.0,0.00029391,31]
[393189668,1762307445859,-568.364366,0.00029391,31]
[393189669,1762307445868,-151.0,0.00029391,31]
[393189670,1762307445878,-568.364366,0.00029391,31]
[393189671,1762307445887,-568.364366,0.00029391,31]
[393189672,1762307445896,-568.364367,0.00029391,31]
[393189673,1762307445905,-151.0,0.00029391,31]
[393189674,1762307445914,-152623.25,0.00029391,2]
[393189675,1762307445923,-198.40813271,0.00029397,2]
[393189676,1762307445936,-163.26,0.000294,7]
[393189677,1762307445947,-168.0,0.00029401,2]
[393189678,1762307445956,-839.06975107,0.00029417,2]
[393189679,1762307445966,-433.0,0.00029428,2]
[393189680,1762307445976,-536.0,0.00029428,2]
[393189681,1762307445986,-2000.0,0.00029435,5]
[393189682,1762307445996,-2000.0,0.00029435,5]
[393189683,1762307446005,-300.08700211,0.00029435,5]
[393189684,1762307446019,-300.03,0.00029437,2]
[393189685,1762307446029,-3213.97108,0.0002944,2]
[393189686,1762307446039,-3213.97108,0.0002947,2]
[393189687,1762307446048,-228.74,0.000295,2]
[393189688,1762307446058,-433.0,0.00029565,2]
[393189689,1762307446068,-536.0,0.00029565,2]
[393189690,1762307446078,-156.478715,0.00029565,31]
[393189691,1762307446088,-191.587633,0.00029565,31]
[393189692,1762307446097,-151.0,0.00029565,31]
[393189693,1762307446106,-151.0,0.00029565,31]
[393189694,1762307446115,-151.0,0.00029565,31]
[393189695,1762307446124,-296.065855,0.00029565,31]
[393189696,1762307446133,-151.0,0.00029565,31]
[393189697,1762307446143,-151.0,0.00029565,31]
[393189698,1762307446152,-151.0,0.00029565,31]
[393189699,1762307446162,-151.0,0.00029565,31]
[393189700,1762307446172,-151.0,0.00029565,31]
[393189701,1762307446183,-151.0,0.00029565,31]
[393189702,1762307446197,-291.198301,0.00029565,28]
[393189703,1762307446206,-291.198301,0.00029565,28]
[393189704,1762307446216,-291.198301,0.00029565,28]
[393189705,1762307446225,-291.198301,0.00029565,28]
[393189706,1762307446235,-476.93,0.00029574,2]
[393189707,1762307446244,-476.93,0.00029574,2]
[393189708,1762307446253,-476.93,0.00029574,2]
[393189709,1762307446263,-476.93,0.00029574,2]
[393189710,1762307446272,-476.93,0.00029574,2]
[393189711,1762307446281,-476.93,0.00029574,2]
[393189712,1762307446291,-476.93,0.00029574,2]
[393189713,1762307446301,-476.93,0.00029574,2]
[393189714,1762307446310,-476.93,0.00029574,2]
[393189715,1762307446319,-476.93,0.00029574,2]
[393189716,1762307446329,-476.93,0.00029574,2]
[393189717,1762307446338,-476.93,0.00029574,2]
[393189718,1762307446349,-476.93,0.00029574,2]
[393189719,1762307446359,-476.93,0.00029574,2]
[393189720,1762307446368,-476.93,0.00029574,2]
[393189721,1762307446377,-486.23,0.00029574,2]
[393189722,1762307446388,-476.93,0.00029574,2]
[393189723,1762307446398,-476.93,0.00029574,2]
[393189724,1762307446410,-476.93,0.00029574,2]
[393189725,1762307446421,-594.82279831,0.00029642,2]
[393189726,1762307446432,-168.0,0.00029668,2]
[393189727,1762307446452,-433.0,0.00029702,2]
[393189728,1762307446464,-536.0,0.00029702,2]
[393189729,1762307446475,-477.65212186,0.00029703,2]
[393189730,1762307446486,-531.80242415,0.00029716,5]
[393189731,1762307446496,-3213.97109,0.0002972,2]
[393189732,1762307446508,-167.84656613,0.00029738,2]
[393189733,1762307446520,-150.0,0.00029773,5]
[393189734,1762307446531,-1003.0,0.000298,30]
[393189735,1762307446543,-433.0,0.00029839,2]
[393189736,1762307446554,-536.0,0.00029839,2]
[393189737,1762307446566,-5704.58479803,0.00029871,2]
[393189738,1762307446577,-168.0,0.00029893,7]
[393189739,1762307446588,-3939.0,0.00029958,2]
[393189740,1762307446599,-156.72,0.00029962,30]
[393189741,1762307446611,-3213.97108,0.0002997,2]
[393189742,1762307446622,-433.0,0.00029976,2]
[393189743,1762307446633,-536.0,0.00029976,2]
[393189744,1762307446645,-1003.08224355,0.00029983,5]
[393189745,1762307446655,-1017.24613966,0.00029983,5]
[393189746,1762307446665,-150.0,0.00029999,15]
[393189747,1762307446675,-5642.62108252,0.0003,2]
[393189748,1762307446688,-4209.05137818,0.0003,2]
[393189749,1762307446699,-151.0,0.0003,7]
[393189750,1762307446711,-1000.0,0.0003,10]
[393189751,1762307446722,-157.0,0.0003,30]
[393189752,1762307446733,-157.0,0.0003,30]
[393189753,1762307446744,-50243.04957927,0.0003,2]
[393189754,1762307446755,-151.0,0.0003,31]
[393189755,1762307446767,-179.481806,0.0003,31]
[393189756,1762307446777,-151.0,0.0003,31]
[393189757,1762307446789,-151.0,0.0003,31]
[393189760,1762307446800,-151.0,0.0003,31]
[393189762,1762307446811,-158.416889,0.0003,31]
[393189763,1762307446822,-246.647452,0.0003,31]
[393189764,1762307446833,-246.647452,0.0003,31]
[393189765,1762307446844,-432.579819,0.0003,31]
[393189766,1762307446855,-432.579819,0.0003,31]
[393189767,1762307446866,-432.579819,0.0003,31]
[393189768,1762307446877,-432.579819,0.0003,31]
[393189769,1762307446889,-151.0,0.0003,31]
[393189770,1762307446901,-151.0,0.0003,31]
[393189771,1762307446911,-5096.98253068,0.0003,2]
[393189772,1762307446922,-151.0,0.0003,31]
[393189773,1762307446934,-151.0,0.0003,31]
[393189774,1762307446952,-156.755722,0.0003,31]
[393189775,1762307446963,-330.136094,0.0003,31]
[393189776,1762307446975,-330.136094,0.0003,31]
[393189777,1762307446987,-330.136094,0.0003,31]
[393189778,1762307447000,-330.136094,0.0003,31]
[393189779,1762307447013,-158.274129,0.0003,31]
[393189780,1762307447026,-151.0,0.0003,31]
[393189781,1762307447037,-151.0,0.0003,31]
[393189782,1762307447049,-151.0,0.0003,31]
[393189783,1762307447059,-151.0,0.0003,31]
[393189784,1762307447071,-151.0,0.0003,31]
[393189785,1762307447080,-151.0,0.0003,31]
[393189786,1762307447090,-250.141516,0.0003,31]
[393189787,1762307447100,-151.0,0.0003,31]
[393189788,1762307447110,-151.0,0.0003,31]
[393189789,1762307447120,-151.0,0.0003,31]
[393189790,1762307447131,-151.0,0.0003,31]
[393189791,1762307447144,-151.0,0.0003,30]
[393189792,1762307447157,-151.0,0.0003,31]
[393189793,1762307447168,-151.0,0.0003,31]
[393189794,1762307447178,-151.0,0.0003,31]
[393189795,1762307447190,-151.0,0.0003,31]
[393189796,1762307447200,-151.0,0.0003,31]
[393189797,1762307447210,-167.94,0.00030036,2]
[393189798,1762307447220,-152.0,0.0003006,3]
[393189799,1762307447231,-167.94,0.00030073,2]
[393189800,1762307447242,-151.0,0.00030075,31]
[393189801,1762307447255,-432.0,0.00030101,7]
[393189802,1762307447266,-167.94,0.0003011,2]
[393189803,1762307447277,-433.0,0.00030113,2]
[393189804,1762307447287,-536.0,0.00030113,2]
[393189805,1762307447297,-406.610533,0.0003012,31]
[393189806,1762307447307,-151.0,0.0003012,14]
[393189807,1762307447316,-406.610533,0.0003012,31]
[393189808,1762307447326,-406.610533,0.0003012,31]
[393189809,1762307447337,-151.0,0.0003012,31]
[393189810,1762307447347,-406.610533,0.0003012,31]
[393189811,1762307447358,-151.0,0.0003012,31]
[393189812,1762307447369,-151.0,0.0003012,31]
[393189813,1762307447380,-151.0,0.0003012,31]
[393189814,1762307447390,-151.0,0.0003012,31]
[393189815,1762307447401,-151.0,0.0003012,31]
[393189816,1762307447411,-151.0,0.0003012,31]
[393189817,1762307447421,-151.0,0.0003012,31]
[393189818,1762307447431,-151.0,0.0003012,31]
[393189819,1762307447444,-151.0,0.0003012,31]
[393189820,1762307447454,-154.057771,0.0003012,31]
[393189821,1762307447464,-151.0,0.0003012,31]
[393189822,1762307447474,-151.0,0.0003012,31]
[393189823,1762307447484,-245.180841,0.0003012,31]
[393189824,1762307447494,-151.0,0.0003012,15]
[393189825,1762307447504,-151.0,0.0003012,31]
[393189826,1762307447515,-151.0,0.0003012,31]
[393189827,1762307447525,-151.0,0.0003012,31]
[393189828,1762307447535,-151.0,0.0003012,31]
[393189829,1762307447545,-151.0,0.0003012,31]
[393189830,1762307447555,-151.0,0.0003012,31]
[393189831,1762307447565,-151.0,0.0003012,31]
[393189832,1762307447575,-151.0,0.0003012,31]
[393189833,1762307447585,-160.782662,0.0003012,31]
[393189834,1762307447595,-151.0,0.0003012,31]
[393189835,1762307447606,-151.0,0.0003012,31]
[393189836,1762307447616,-154.29275356,0.0003012,31]
[393189837,1762307447626,-150.0,0.0003012,31]
[393189838,1762307447636,-151.0,0.0003012,31]
[393189839,1762307447646,-151.0,0.0003012,31]
[393189840,1762307447658,-151.0,0.0003012,31]
[393189841,1762307447668,-151.0,0.0003012,31]
[393189842,1762307447678,-151.0,0.0003012,31]
[393189843,1762307447692,-151.0,0.0003012,31]
[393189844,1762307447703,-281.974888,0.0003012,31]
[393189845,1762307447714,-151.0,0.0003012,31]
[393189846,1762307447724,-291.198301,0.0003012,28]
[393189847,1762307447735,-291.198301,0.0003012,28]
[393189848,1762307447745,-291.198301,0.0003012,28]
[393189849,1762307447756,-291.198299,0.0003012,28]
[393189850,1762307447767,-307.80478728,0.0003013,2]
[393189851,1762307447776,-1058.21149731,0.0003013,2]
[393189852,1762307447786,-13657.52310781,0.0003013,2]
[393189853,1762307447796,-151.0,0.0003013,31]
[393189854,1762307447808,-151.0,0.0003013,31]
[393189855,1762307447819,-151.0,0.0003013,31]
[393189856,1762307447830,-1002.54939721,0.0003013,14]
[393189857,1762307447841,-1000.0,0.0003013,14]
[393189858,1762307447851,-877.77008687,0.0003013,2]
[393189859,1762307447862,-999.0,0.00030136,2]
[393189860,1762307447871,-3939.0,0.00030147,2]
[393189861,1762307447882,-341.25163155,0.000302,2]
[393189862,1762307447893,-3213.97109,0.0003022,2]
[393189863,1762307447903,-151.0,0.00030235,31]
[393189864,1762307447914,-151.0,0.00030235,31]
[393189865,1762307447927,-433.0,0.0003025,2]
[393189866,1762307447942,-536.0,0.0003025,2]
[393189867,1762307447952,-150.0,0.00030259,2]
[393189868,1762307447963,-159.02,0.00030259,2]
[393189869,1762307447974,-150.0,0.00030259,2]
[393189870,1762307447986,-150.0,0.00030259,2]
[393189871,1762307447996,-150.94,0.00030259,2]
[393189872,1762307448007,-163.26,0.000303,7]
[393189873,1762307448017,-500.0,0.00030302,2]
[393189874,1762307448027,-250.0,0.00030321,5]
[393189875,1762307448037,-3939.0,0.00030332,2]
[393189876,1762307448047,-500.0,0.00030355,120]
[393189877,1762307448057,-3939.0,0.00030359,7]
[393189878,1762307448067,-433.0,0.00030387,2]
[393189879,1762307448077,-536.0,0.00030387,2]
[393189880,1762307448087,-940.02202175,0.00030434,30]
[393189881,1762307448097,-3213.97108,0.0003047,2]
[393189882,1762307448108,-152.0,0.00030486,4]
[393189883,1762307448118,-432.0,0.00030491,2]
[393189884,1762307448128,-1000.0,0.000305,2]
[393189885,1762307448138,-433.0,0.00030524,2]
[393189886,1762307448148,-536.0,0.00030524,2]
[393189887,1762307448158,-500.0,0.00030549,120]
[393189888,1762307448169,-168.0,0.0003057,7]
[393189889,1762307448180,-500.0,0.0003062,120]
[393189890,1762307448194,-433.0,0.00030661,2]
[393189891,1762307448204,-536.0,0.00030661,2]
[393189892,1762307448215,-1000.0,0.00030667,2]
[393189893,1762307448226,-217.2,0.00030722,2]
[393189894,1762307448236,-433.0,0.00030798,2]
[393189895,1762307448247,-536.0,0.00030798,2]
[393189896,1762307448257,-211.0,0.0003084,30]
[393189897,1762307448269,-2574.46346971,0.0003084,2]
[393189898,1762307448280,-250.78168277,0.00030868,5]
[393189899,1762307448290,-152.0,0.00030913,5]
[393189900,1762307448301,-433.0,0.00030935,2]
[393189901,1762307448311,-536.0,0.00030935,2]
[393189902,1762307448321,-9220.8139616,0.0003095,2]
[393189903,1762307448331,-151.0,0.00030988,31]
[393189904,1762307448341,-153.473802,0.00030988,31]
[393189905,1762307448351,-1200.0,0.00031,35]
[393189906,1762307448362,-1152.0,0.00031054,2]
[393189907,1762307448372,-433.0,0.00031072,2]
[393189908,1762307448383,-536.0,0.00031072,2]
[393189909,1762307448393,-150.0,0.00031081,2]
[393189910,1762307448402,-150.0,0.00031081,2]
[393189911,1762307448413,-150.0,0.00031081,2]
[393189912,1762307448423,-12590.43521086,0.00031118,2]
[393189913,1762307448433,-356.82,0.00031138,2]
[393189914,1762307448448,-500.0,0.0003114,120]
[393189915,1762307448458,-444.96050936,0.00031209,2]
[393189916,1762307448468,-537.57313684,0.00031209,2]
[393189917,1762307448479,-3939.0,0.0003121,7]
[393189918,1762307448489,-500.0,0.00031211,120]
[393189919,1762307448499,-4003.0,0.00031266,2]
[393189920,1762307448508,-1331.91,0.00031287,2]
[393189921,1762307448519,-500.0,0.00031291,120]
[393189922,1762307448529,-151.0,0.00031321,31]
[393189923,1762307448539,-152.0,0.00031339,6]
[393189924,1762307448549,-156.72,0.00031347,30]
[393189925,1762307448561,-2193.0,0.0003137,2]
[393189926,1762307448572,-929.38,0.00031373,120]
[393189927,1762307448582,-414.5,0.00031379,29]
[393189928,1762307448593,-8167.786,0.00031379,29]
[393189929,1762307448603,-252.467454,0.00031379,31]
[393189930,1762307448613,-252.467454,0.00031379,31]
[393189931,1762307448624,-252.467454,0.00031379,31]
[393189932,1762307448634,-252.46746332,0.00031379,31]
[393189933,1762307448644,-151.0,0.00031379,31]
[393189934,1762307448655,-217.205769,0.00031379,31]
[393189935,1762307448665,-217.205769,0.00031379,31]
[393189936,1762307448675,-217.205769,0.00031379,31]
[393189937,1762307448685,-217.205772,0.00031379,31]
[393189938,1762307448700,-151.0,0.00031379,31]
[393189939,1762307448711,-151.0,0.00031379,31]
[393189940,1762307448721,-180.74643,0.0003138,31]
[393189941,1762307448731,-406.610533,0.0003138,31]
[393189942,1762307448742,-151.0,0.0003138,14]
[393189943,1762307448752,-406.610533,0.0003138,31]
[393189944,1762307448762,-406.610533,0.0003138,31]
[393189945,1762307448772,-406.610533,0.0003138,31]
[393189946,1762307448782,-151.0,0.0003138,31]
[393189947,1762307448792,-151.0,0.0003138,31]
[393189948,1762307448802,-151.0,0.0003138,31]
[393189949,1762307448811,-151.0,0.0003138,31]
[393189950,1762307448821,-166.178201,0.0003138,31]
[393189951,1762307448832,-151.0,0.0003138,31]
[393189952,1762307448841,-151.0,0.0003138,31]
[393189953,1762307448851,-151.0,0.0003138,15]
[393189954,1762307448861,-151.0,0.0003138,31]
[393189955,1762307448872,-151.0,0.0003138,31]
[393189956,1762307448882,-2000.0,0.000314,2]
[393189957,1762307448892,-6481.25660988,0.0003143,4]
[393189958,1762307448902,-151.0,0.00031462,31]
[393189959,1762307448912,-500.0,0.00031514,7]
[393189960,1762307448922,-500.0,0.00031514,30]
[393189961,1762307448932,-500.0,0.00031514,120]
[393189962,1762307448947,-151.0,0.00031536,31]
[393189963,1762307448958,-162.32794439,0.00031629,2]
[393189964,1762307448968,-4609.0,0.00031639,3]
[393189965,1762307449256,-151.0,0.00031671,31]
[393189966,1762307449275,-151.0,0.00031671,31]
[393189967,1762307449284,-151.0,0.00031671,31]
[393189968,1762307449294,-151.0,0.00031671,31]
[393189969,1762307449304,-246.647452,0.00031671,31]
[393189970,1762307449313,-246.647461,0.00031671,31]
[393189971,1762307449322,-432.579819,0.00031671,31]
[393189972,1762307449332,-432.579819,0.00031671,31]
[393189973,1762307449342,-432.579819,0.00031671,31]
[393189974,1762307449351,-432.579811,0.00031671,31]
[393189975,1762307449360,-151.0,0.00031671,31]
[393189976,1762307449371,-151.0,0.00031671,31]
[393189977,1762307449380,-805.0,0.00031671,2]
[393189978,1762307449389,-152.0,0.00031766,7]
[393189979,1762307449398,-594.82279831,0.00031773,2]
[393189980,1762307449408,-11823.29191324,0.00031794,2]
[393189981,1762307449416,-1000.0,0.00031875,2]
[393189982,1762307449426,-150.0,0.00031903,2]
[393189983,1762307449435,-150.0,0.00031903,2]
[393189984,1762307449449,-150.0,0.00031903,2]
[393189985,1762307449458,-150.0,0.00031903,2]
[393189986,1762307449468,-150.0,0.00031903,2]
[393189987,1762307449478,-150.0,0.00031903,2]
[393189988,1762307449487,-150.0,0.00031903,2]
[393189989,1762307449496,-150.0,0.00031903,2]
[393189990,1762307449505,-150.0,0.00031903,2]
[393189991,1762307449513,-150.0,0.00031903,2]
[393189992,1762307449522,-150.0,0.00031903,2]
[393189993,1762307449531,-150.0,0.00031903,2]
[393189994,1762307449540,-150.0,0.00031903,2]
[393189995,1762307449549,-150.0,0.00031903,2]
[393189996,1762307449558,-150.98,0.00031903,2]
[393189997,1762307449567,-150.0,0.00031903,2]
[393189998,1762307449577,-150.0,0.00031903,2]
[393189999,1762307449586,-151.74,0.00031903,2]
[393190000,1762307449595,-500.0,0.00032,60]
[393190001,1762307449605,-519.712659,0.00032054,6]
[393190002,1762307449613,-290.475864,0.00032054,6]
[393190003,1762307449622,-500.07893,0.00032054,6]
[393190004,1762307449631,-1135.75457,0.00032054,6]
[393190005,1762307449641,-156.083284,0.00032054,6]
[393190006,1762307449650,-192.31355,0.00032054,6]
[393190007,1762307449661,-500.0,0.00032088,120]
[393190008,1762307449669,-151.0,0.0003209,31]
[393190009,1762307449679,-151.0,0.0003209,31]
[393190010,1762307449692,-151.0,0.0003209,31]
[393190011,1762307449701,-500.0,0.00032099,120]
[393190012,1762307449711,-152.933947,0.0003212,31]
[393190013,1762307449720,-151.0,0.0003212,31]
[393190014,1762307449729,-217.2,0.00032185,2]
[393190015,1762307449739,-152.0,0.00032192,8]
[393190016,1762307449748,-300.60848387,0.000322,2]
[393190017,1762307449757,-500.0,0.00032231,120]
[393190018,1762307449766,-9038.86,0.00032232,2]
[393190019,1762307449775,-14284.94,0.00032232,30]
[393190020,1762307449784,-285.390424,0.00032301,6]
[393190021,1762307449793,-290.475864,0.00032301,6]
[393190022,1762307449802,-519.712659,0.00032301,6]
[393190023,1762307449811,-500.07893,0.00032301,6]
[393190024,1762307449820,-1135.75457,0.00032301,6]
[393190025,1762307449830,-156.083284,0.00032301,6]
[393190026,1762307449839,-192.31355,0.00032301,6]
[393190027,1762307449848,-3422.0,0.00032308,2]
[393190028,1762307449857,-576.786,0.00032308,2]
[393190029,1762307449866,-610.077,0.00032308,2]
[393190030,1762307449875,-1315.0,0.00032308,2]
[393190031,1762307449885,-1595.0,0.00032308,2]
[393190032,1762307449894,-820.0,0.00032308,2]
[393190033,1762307449903,-1272.0,0.00032308,2]
[393190034,1762307449913,-812.0,0.00032308,2]
[393190035,1762307449922,-151.0,0.00032308,31]
[393190036,1762307449931,-151.0,0.00032308,31]
[393190037,1762307449947,-330.136094,0.00032308,31]
[393190038,1762307449957,-330.136094,0.00032308,31]
[393190039,1762307449966,-330.136094,0.00032308,31]
[393190040,1762307449975,-330.136084,0.00032308,31]
[393190041,1762307449986,-151.0,0.00032308,31]
[393190042,1762307449995,-151.0,0.00032308,31]
[393190043,1762307450004,-151.0,0.00032308,31]